bitfinex-derivatives/quotes_SOLF0:USTF0_20250829
["timestamp","ask_amount","ask_price","bid_price","bid_amount"]
[1756480771560,7.0,209.92,209.79,5.15]
[1756480771766,7.0,209.88,209.77,3.97300989]
[1756480771955,7.0,209.88,209.76,3.97300989]
[1756480772160,7.0,209.88,209.74,9.12300989]
[1756480772560,7.0,209.88,209.74,5.15]
[1756480772763,7.0,209.84,209.74,5.15]
[1756480772963,7.0,209.84,209.71,3.97300989]
[1756480773466,4.289,209.82,209.7,3.97300989]
[1756480773966,4.2894,209.8,209.7,3.97300989]
[1756480774165,18.11761805,209.81,209.69,9.12300989]
[1756480774364,7.0,209.81,209.7,3.97300989]
[1756480774574,7.0,209.81,209.69,9.12300989]
[1756480774868,7.0,209.81,209.69,5.15]
[1756480774869,11.2892,209.81,209.69,5.15]
[1756480775264,7.0,209.81,209.69,5.15]
[1756480775460,7.0,209.76,209.66,3.97300989]
[1756480775666,7.0,209.76,209.63,10.49384649]
[1756480775667,7.0,209.76,209.65,3.97300989]
[1756480775867,7.0,209.76,209.64,3.97300989]
[1756480776068,7.0,209.76,209.63,5.15]
[1756480776069,11.11761805,209.74,209.63,5.15]
[1756480776866,7.0,209.76,209.63,5.15]
[1756480777470,11.2902,209.76,209.63,5.15]
[1756480777665,11.11761805,209.73,209.63,5.15]
[1756480777970,7.0,209.76,209.63,5.15]
[1756480778175,7.0,209.76,209.6,3.97300989]
[1756480778176,11.11761805,209.71,209.6,3.97300989]
[1756480778374,18.56761805,209.71,209.6,66.7883]
[1756480778670,11.11761805,209.75,209.62,71.9115]
[1756480779270,11.11761805,209.75,209.67,4.292]
[1756480779469,11.11761805,209.75,209.67,66.7652]
[1756480779670,124.5451417,209.77,209.69,66.7592]
[1756480780167,7.45,209.81,209.73,4.2908]
[1756480780568,18.56761805,209.87,209.74,66.7435]
[1756480780770,148.30761805,209.87,209.74,5.13]
[1756480780966,148.30761805,209.87,209.74,71.8732]
[1756480781177,148.30761805,209.87,209.74,5.13]
[1756480781569,15.40641805,209.83,209.7,8.26430989]
[1756480781875,15.40641805,209.83,209.7,4.2913]
[1756480781876,11.11761805,209.83,209.7,4.2913]
[1756480782267,7.45,209.82,209.72,4.291]
[1756480782970,7.45,209.82,209.72,66.7474]
[1756480783179,449.86,209.86,209.73,5.13]
[1756480784469,7.45,209.91,209.73,5.13]
[1756480784669,7.45,209.91,209.72,200.30040989]
[1756480784670,7.45,209.91,209.74,9.10300989]
[1756480784874,7.45,209.91,209.74,5.13]
[1756480785071,7.45,209.91,209.75,5.13]
[1756480785272,7.45,209.99,209.77,9.10300989]
[1756480785473,320.3,210.0,209.78,9.10300989]
[1756480785474,7.45,209.95,209.78,9.10300989]
[1756480785668,7.45,209.95,209.78,5.13]
[1756480785872,7.45,209.95,209.78,9.10300989]
[1756480786076,7.45,209.95,209.78,5.13]
[1756480786275,7.45,209.95,209.78,9.10300989]
[1756480786586,7.45,209.91,209.78,5.13]
[1756480787477,4.2874,209.9,209.78,5.13]
[1756480790068,4.2874,209.9,209.78,9.4197]
[1756480790875,4.2874,209.9,209.8,4.2894]
[1756480791277,18.56761805,209.91,209.82,4.289]
[1756480791473,7.45,209.91,209.82,4.289]
[1756480791673,7.45,209.91,209.8,66.7245]
[1756480791881,7.45,209.97,209.83,71.8448]
[1756480792078,7.45,209.97,209.83,75.81780989]
[1756480792279,11.736,209.97,209.83,9.10300989]
[1756480792684,11.736,209.97,209.84,3.97300989]
[1756480792876,11.736,209.97,209.88,4.2878]
[1756480795184,4.2864,209.95,209.86,4.2882]
[1756480795376,11.11761805,209.98,209.83,9.10300989]
[1756480795377,7.45,209.94,209.83,9.10300989]
[1756480795680,18.56761805,209.94,209.8,3.97300989]
[1756480795878,18.56761805,209.94,209.79,3.97300989]
[1756480796179,11.7374,209.9,209.79,8.26260989]
[1756480796384,22.85501805,209.9,209.79,4.2896]
[1756480796575,11.7374,209.9,209.78,9.10300989]
[1756480796774,11.7374,209.9,209.78,5.13]
[1756480797378,4.2878,209.89,209.8,4.2892]
[1756480797576,7.45,209.9,209.78,5.13]
[1756480798184,7.45,209.9,209.73,66.7461]
[1756480798185,7.45,209.86,209.76,3.97300989]
[1756480798392,7.45,209.86,209.73,3.97300989]
[1756480798886,4.2886,209.85,209.75,4.2903]
[1756480799388,7.45,209.82,209.72,3.97300989]
[1756480799687,7.45,209.82,209.71,5.13]
[1756480800082,7.45,209.82,209.69,3.97300989]
[1756480800283,7.45,209.74,209.65,3.97300989]
[1756480800479,7.45,209.74,209.63,3.97300989]
[1756480800689,7.45,209.74,209.63,70.75180989]
[1756480800888,7.45,209.74,209.63,3.97300989]
[1756480801186,7.45,209.74,209.62,3.97300989]
[1756480801388,4.2913,209.71,209.6,13.39640989]
[1756480801687,4.2913,209.71,209.58,3.97300989]
[1756480801688,7.45,209.7,209.58,3.97300989]
[1756480801888,11.11761805,209.67,209.57,3.97300989]
[1756480802189,11.11761805,209.67,209.56,4.2942]
[1756480802588,11.11761805,209.63,209.55,5.13]
[1756480802790,11.11761805,209.65,209.55,5.13]
[1756480803177,11.11761805,209.65,209.55,71.9343]
[1756480803584,11.11761805,209.65,209.56,66.8007]
[1756480803778,18.56761805,209.68,209.58,66.7945]
[1756480803990,18.56761805,209.68,209.57,66.7978]
[1756480804292,7.45,209.68,209.59,66.7916]
[1756480804592,7.45,209.73,209.63,66.7781]
[1756480804790,7.45,209.79,209.65,66.7729]
[1756480804984,7.45,209.79,209.66,66.7696]
[1756480805181,7.45,209.79,209.69,66.76]
[1756480805385,7.45,209.79,209.68,66.7627]
[1756480805585,123.58566369,209.81,209.71,66.7539]
[1756480805784,123.58566369,209.81,209.67,3.97300989]
[1756480805785,11.11761805,209.81,209.67,3.97300989]
[1756480805983,7.45,209.8,209.66,5.13]
[1756480806291,7.45,209.75,209.63,3.97300989]
[1756480806484,11.11761805,209.72,209.6,9.10300989]
[1756480806784,128.74,209.75,209.64,4.2927]
[1756480806987,11.11761805,209.76,209.65,66.7728]
[1756480807182,135.8,209.77,209.65,66.7728]
[1756480807183,7.0,209.77,209.65,5.13]
[1756480807887,128.76,209.79,209.65,5.13]
[1756480808088,128.76,209.79,209.67,5.13]
[1756480808487,7.0,209.82,209.67,5.13]
[1756480808794,320.22,209.84,209.7,9.10300989]
[1756480809289,114.18,209.87,209.72,3.97300989]
[1756480809494,118.4681,209.87,209.71,5.13]
[1756480809692,114.18,209.87,209.71,5.13]
[1756480809889,18.61904186,209.85,209.71,5.13]
[1756480810187,7.0,209.82,209.67,3.97300989]
[1756480810388,7.0,209.82,209.66,5.13]
[1756480810389,18.61904186,209.8,209.66,5.13]
[1756480810593,7.0,209.79,209.66,5.13]
[1756480810793,39.64,209.82,209.67,3.97300989]
[1756480810993,39.64,209.82,209.68,5.13]
[1756480811195,39.64,209.82,209.68,9.10300989]
[1756480811593,7.0,209.84,209.69,3.97300989]
[1756480811797,7.0,209.84,209.71,3.97300989]
[1756480812193,7.0,209.84,209.73,3.97300989]
[1756480812395,7.0,209.84,209.7,10.47384649]
[1756480812396,7.0,209.84,209.72,3.97300989]
[1756480812692,7.0,209.84,209.7,9.10300989]
[1756480812899,7.0,209.84,209.7,5.13]
[1756480813197,7.0,209.84,209.71,3.97300989]
[1756480813697,7.0,209.84,209.72,3.97300989]
[1756480813899,7.0,209.84,209.73,3.97300989]
[1756480814094,7.0,209.9,209.76,5.13]
[1756480814294,7.0,209.9,209.82,66.7181]
[1756480814698,154.11904186,209.96,209.84,66.7117]
[1756480815093,135.5,209.96,209.85,66.7097]
[1756480815601,135.5,209.96,209.83,66.7153]
[1756480815801,135.5,209.96,209.86,4.2881]
[1756480816003,135.5,209.96,209.86,66.707]
[1756480816904,25.61904186,210.01,209.88,66.6989]
[1756480817403,7.0,209.97,209.86,4.2882]
[1756480817791,7.0,209.97,209.81,3.97300989]
[1756480817792,85.29574186,209.96,209.81,3.97300989]
[1756480817994,4.2871,209.92,209.79,9.4197]
[1756480818192,128.46,209.94,209.81,66.7219]
[1756480818499,128.46,209.94,209.79,9.10300989]
[1756480818700,128.46,209.94,209.83,66.7162]
[1756480818902,7.0,209.95,209.84,66.7135]
[1756480820103,7.0,210.01,209.85,5.11]
[1756480820299,7.0,210.01,209.85,9.08300989]
[1756480820602,18.61904186,210.02,209.85,9.08300989]
[1756480820810,7.0,210.01,209.85,5.11]
[1756480821306,7.0,210.01,209.85,9.08300989]
[1756480822200,7.0,210.01,209.87,3.97300989]
[1756480822406,7.0,210.01,209.88,3.97300989]
[1756480823607,7.0,210.01,209.89,5.11]
[1756480824308,7.0,210.06,209.9,5.11]
[1756480824610,7.0,210.06,209.9,9.08300989]
[1756480824906,7.0,210.06,209.9,5.11]
[1756480825111,4.285,210.03,209.9,5.11]
[1756480825407,109.08,210.08,209.9,5.11]
[1756480825408,7.0,210.02,209.9,5.11]
[1756480826600,7.0,210.02,209.97,4.286]
[1756480826902,4.284,210.08,209.94,66.6796]
[1756480826903,7.0,210.07,209.94,66.6796]
[1756480827103,85.24454186,210.12,209.93,66.6831]
[1756480827104,7.0,210.12,209.95,5.11]
[1756480827508,7.0,210.12,209.96,9.08300989]
[1756480828107,7.0,210.12,209.97,5.11]
[1756480828504,7.0,210.12,210.0,5.11]
[1756480829100,0.82849252,210.16,210.0,16.21582058]
[1756480829302,7.0,210.17,210.05,5.11]
[1756480829607,7.0,210.17,210.05,16.21582058]
[1756480830307,18.10582058,210.17,210.02,5.11]
[1756480830505,7.0,210.17,210.02,5.11]
[1756480830806,13.84,210.17,210.02,5.11]
[1756480831711,11.10582058,210.15,210.02,5.11]
[1756480831910,7.0,210.14,210.02,5.11]
[1756480832105,7.0,210.1,209.96,9.08300989]
[1756480832311,7.0,210.16,209.99,11.10582058]
[1756480832516,7.0,210.16,210.0,5.11]
[1756480832708,7.0,210.21,210.01,5.11]
[1756480833014,7.0,210.21,210.04,5.11]
[1756480834110,0.82831505,210.23,210.11,5.11]
[1756480834312,7.0,210.27,210.11,5.11]
[1756480835302,4.2809,210.23,210.08,4.2838]
[1756480835506,7.0,210.22,210.1,5.1]
[1756480835706,7.0,210.3,210.1,5.1]
[1756480835904,7.0,210.3,210.13,66.6234]
[1756480836109,7.0,210.3,210.18,66.6065]
[1756480836110,33.08,210.3,210.18,66.6065]
[1756480836302,7.0,210.29,210.18,4.2818]
[1756480836911,4.2798,210.28,210.15,4.2823]
[1756480837211,4.2798,210.28,210.14,5.1]
[1756480837212,7.43,210.27,210.18,66.6071]
[1756480838009,7.43,210.27,210.14,71.7196]
[1756480838315,0.82790122,210.31,210.11,66.6291]
[1756480838316,11.10582058,210.29,210.11,66.6291]
[1756480838513,4.2801,210.27,210.11,66.6291]
[1756480838713,7.43,210.26,210.11,66.6291]
[1756480838910,7.43,210.28,210.13,11.10582058]
[1756480839609,7.43,210.28,210.14,5.09]
[1756480839805,7.43,210.33,210.17,11.10582058]
[1756480840013,7.43,210.33,210.18,5.09]
[1756480841213,0.82785199,210.34,210.22,5.09]
[1756480841815,7.61002,210.38,210.22,5.09]
[1756480842816,7.61002,210.38,210.25,11.10582058]
[1756480843017,7.61002,210.38,210.26,5.09]
[1756480843514,7.61002,210.38,210.29,4.2796]
[1756480843719,7.61002,210.38,210.26,71.6698]
[1756480843720,7.61002,210.38,210.23,66.5918]
[1756480844212,7.43,210.36,210.21,5.09]
[1756480844610,4.2787,210.34,210.22,4.2809]
[1756480844915,135.61,210.36,210.22,66.593]
[1756480845215,135.61,210.36,210.23,66.5914]
[1756480845415,7.43,210.35,210.19,66.6024]
[1756480845619,0.18002,210.38,210.28,66.5754]
[1756480845817,0.18002,210.38,210.32,4.2788]
[1756480846421,0.18002,210.38,210.34,4.2785]
[1756480846623,0.18002,210.38,210.34,5.09]
[1756480847119,0.18002,210.38,210.36,4.278]
[1756480847913,0.18002,210.38,210.34,5.09]
[1756480848417,0.18002,210.38,210.3,66.5689]
[1756480848615,0.18002,210.38,210.32,66.563]
[1756480849124,0.18002,210.38,210.32,4.2789]
[1756480849317,0.18002,210.38,210.3,66.5689]
[1756480850220,0.18002,210.38,210.29,5.09]
[1756480850822,0.18002,210.38,210.33,9.3686]
[1756480851124,0.18002,210.38,210.33,5.09]
[1756480852025,0.82724193,210.46,210.37,71.6366]
[1756480852225,7.43,210.51,210.37,5.09]
[1756480852726,4.2755,210.5,210.41,4.2772]
[1756480853626,7.43,210.49,210.32,16.19582058]
[1756480854127,7.43,210.49,210.36,5.09]
[1756480854324,11.7055,210.49,210.36,5.09]
[1756480854526,7.43,210.49,210.36,5.09]
[1756480854722,4.2763,210.45,210.36,5.09]
[1756480855023,7.43,210.45,210.31,5.09]
[1756480855223,67.33006499,210.51,210.3,158.91332058]
[1756480855224,12.53226499,210.51,210.4,4.2773]
[1756480855424,12.53226499,210.51,210.36,66.5498]
[1756480855425,128.06,210.5,210.37,5.09]
[1756480855924,11.10582058,210.44,210.31,5.09]
[1756480856224,7.43,210.43,210.26,5.09]
[1756480856418,7.43,210.43,210.29,4.2795]
[1756480856727,128.04,210.42,210.29,4.2795]
[1756480856929,7.43,210.41,210.29,4.2795]
[1756480857123,128.04,210.4,210.29,4.2795]
[1756480857323,128.04,210.39,210.29,4.2795]
[1756480857524,128.04,210.38,210.29,66.5713]
[1756480857724,7.43,210.41,210.29,66.5713]
[1756480858124,41.34,210.4,210.33,4.2787]
[1756480858319,7.43,210.41,210.25,77.68922058]
[1756480858320,7.43,210.39,210.25,11.10582058]
[1756480858519,7.43,210.39,210.24,66.5875]
[1756480858722,43.8,210.38,210.24,66.5875]
[1756480858926,18.53582058,210.39,210.28,4.2796]
[1756480859226,71.32,210.38,210.28,66.5735]
[1756480859427,66.4913,210.55,210.34,66.555]
[1756480859428,7.43,210.45,210.34,66.555]
[1756480859620,7.43,210.49,210.4,4.2773]
[1756480859820,128.02,210.48,210.4,4.2773]
[1756480860023,7.43,210.49,210.35,71.642]
[1756480860229,330.58582058,210.5,210.35,5.09]
[1756480860230,7.43,210.47,210.35,5.09]
[1756480860731,139.12582058,210.48,210.29,71.6601]
[1756480861023,7.43,210.47,210.31,66.5649]
[1756480861231,7.43,210.47,210.35,4.2783]
[1756480861528,7.43,210.52,210.45,66.5209]
[1756480861827,128.02,210.54,210.47,4.2759]
[1756480862026,7.43,210.55,210.46,66.5176]
[1756480862424,128.02,210.54,210.5,4.2753]
[1756480862728,7.43,210.53,210.5,4.2753]
[1756480862926,0.8268783,210.56,210.5,66.5049]
[1756480863127,128.02,210.58,210.51,66.5019]
[1756480863327,7.43,210.59,210.53,66.4956]
[1756480863522,128.82668187,210.6,210.54,66.4925]
[1756480863731,128.0,210.6,210.52,66.4988]
[1756480863922,7.43,210.6,210.51,66.5019]
[1756480864123,7.43,210.58,210.55,4.2741]
[1756480864322,135.43,210.58,210.55,4.2741]
[1756480864526,7.43,210.58,210.53,66.4956]
[1756480864729,18.53582058,210.56,210.45,66.5205]
[1756480864932,18.53582058,210.56,210.46,66.5179]
[1756480865126,128.0,210.55,210.45,66.5208]
[1756480865324,128.0,210.55,210.43,5.09]
[1756480866031,127.98,210.54,210.41,66.5337]
[1756480866233,18.53582058,210.52,210.39,66.539]
[1756480866733,18.53582058,210.52,210.42,4.2767]
[1756480866930,7.43,210.52,210.42,66.5281]
[1756480867229,7.43,210.52,210.32,12.4239017]
[1756480867230,11.10582058,210.48,210.29,66.5707]
[1756480867423,11.10582058,210.48,210.29,5.08]
[1756480867424,73.5621,210.45,210.29,5.08]
[1756480867629,4.278,210.37,210.26,4.28]
[1756480867923,4.278,210.37,210.24,5.08]
[1756480867924,135.2,210.36,210.24,5.08]
[1756480868121,4.2785,210.34,210.21,4.2812]
[1756480868328,7.04,210.35,210.21,66.5954]
[1756480868528,63.44,210.34,210.24,66.5866]
[1756480868723,63.44,210.34,210.26,4.28]
[1756480868929,25.54992085,210.41,210.26,66.5797]
[1756480869126,128.18,210.4,210.23,71.6695]
[1756480869525,25.54992085,210.41,210.26,66.5804]
[1756480869729,25.54992085,210.41,210.25,66.5826]
[1756480869730,128.12,210.4,210.25,66.5826]
[1756480869931,132.3973,210.4,210.24,66.586]
[1756480870232,25.54992085,210.41,210.26,66.5805]
[1756480870533,7.04,210.41,210.28,5.08]
[1756480870735,128.14,210.4,210.3,66.5681]
[1756480871035,128.14,210.4,210.3,4.2792]
[1756480871626,7.04,210.41,210.28,71.6541]
[1756480871930,7.04,210.47,210.33,66.5587]
[1756480872236,7.04,210.47,210.35,66.5518]
[1756480872237,128.1,210.46,210.35,66.5518]
[1756480872431,128.14,210.45,210.35,4.2781]
[1756480872637,7.04,210.47,210.34,66.5548]
[1756480872935,7.04,210.47,210.39,4.2775]
[1756480872936,128.12,210.46,210.39,4.2775]
[1756480873236,128.12,210.46,210.33,66.5582]
[1756480873438,7.04,210.45,210.32,5.08]
[1756480873731,4.2765,210.44,210.32,5.08]
[1756480873939,7.04,210.45,210.34,4.2785]
[1756480874132,128.16,210.44,210.34,4.2785]
[1756480874546,7.04,210.45,210.36,4.2781]
[1756480874734,128.08,210.44,210.34,66.5543]
[1756480874929,66.484,210.57,210.37,66.546]
[1756480874930,7.04,210.51,210.37,66.546]
[1756480875536,55.24,210.5,210.39,66.5387]
[1756480875734,55.24,210.5,210.39,71.6187]
[1756480876442,7.04,210.51,210.43,4.2767]
[1756480876738,128.08,210.5,210.39,5.08]
[1756480876934,7.04,210.51,210.39,5.08]
[1756480876935,128.0,210.49,210.39,5.08]
[1756480877141,128.0,210.5,210.42,4.2768]
[1756480877833,128.0,210.5,210.39,3.8661017]
[1756480878137,128.0,210.5,210.37,3.8661017]
[1756480878535,7.04,210.51,210.37,3.8661017]
[1756480878738,128.04,210.5,210.38,3.8661017]
[1756480879141,132.3153,210.5,210.38,8.1438017]
[1756480879535,132.3153,210.5,210.35,5.34384649]
[1756480879536,4.2759,210.47,210.37,3.8661017]
[1756480879739,4.2759,210.47,210.36,3.8661017]
[1756480879947,7.04,210.46,210.34,3.8661017]
[1756480880145,7.04,210.46,210.31,5.34384649]
[1756480880146,7.04,210.44,210.32,3.8661017]
[1756480880444,66.5334,210.41,210.28,3.8661017]
[1756480880649,66.5334,210.41,210.26,3.8661017]
[1756480880650,7.04,210.38,210.26,3.8661017]
[1756480881043,7.04,210.38,210.26,8.9461017]
[1756480881245,70.76,210.37,210.27,3.8661017]
[1756480881440,70.76,210.37,210.26,3.8661017]
[1756480881643,70.76,210.37,210.24,3.8661017]
[1756480881644,7.04,210.36,210.24,3.8661017]
[1756480881843,7.04,210.36,210.23,3.8661017]
[1756480882141,4.2793,210.3,210.2,3.8661017]
[1756480882346,128.1,210.29,210.19,3.8661017]
[1756480882742,11.3199,210.27,210.19,3.8661017]
[1756480883044,7.04,210.27,210.15,3.8661017]
[1756480883239,66.5826,210.26,210.14,3.8661017]
[1756480883444,73.6242,210.25,210.12,3.8661017]
[1756480883644,7.04,210.21,210.09,3.8661017]
[1756480883846,128.08,210.2,210.08,8.9461017]
[1756480884241,7.04,210.21,210.08,5.08]
[1756480884441,66.5568,210.34,210.08,5.08]
[1756480884442,4.2788,210.33,210.2,4.2813]
[1756480884642,93.74,210.32,210.17,5.08]
[1756480885141,128.42,210.31,210.17,5.08]
[1756480885743,7.04,210.3,210.17,5.08]
[1756480885943,128.44,210.29,210.19,66.6025]
[1756480886145,128.44,210.29,210.17,5.08]
[1756480886650,7.04,210.3,210.17,5.08]
[1756480886850,128.52,210.28,210.17,5.08]
[1756480887039,7.04,210.3,210.18,66.6054]
[1756480887040,128.56,210.29,210.18,66.6054]
[1756480887245,128.56,210.29,210.17,71.6879]
[1756480887750,7.04,210.3,210.17,5.08]
[1756480888246,7.04,210.3,210.21,4.281]
[1756480889652,25.54992085,210.35,210.21,71.674]
[1756480889950,128.46,210.34,210.21,5.08]
[1756480890142,25.54992085,210.35,210.22,66.5926]
[1756480890342,7.04,210.41,210.27,66.577]
[1756480890549,7.04,210.45,210.27,3.8661017]
[1756480890745,7.04,210.45,210.27,71.6567]
[1756480890949,7.04,210.45,210.29,66.5706]
[1756480890950,128.7,210.44,210.29,66.5706]
[1756480891344,7.04,210.45,210.34,4.2784]
[1756480891555,128.74,210.44,210.34,4.2784]
[1756480891847,7.04,210.45,210.34,4.2784]
[1756480891848,135.78,210.45,210.34,4.2784]
[1756480892648,7.04,210.45,210.35,66.5517]
[1756480892855,120.42,210.48,210.36,5.08]
[1756480893046,120.42,210.48,210.31,3.8661017]
[1756480893244,120.42,210.48,210.09,18.2678238]
[1756480893245,66.5337,210.41,210.3,3.8661017]
[1756480893447,135.68,210.4,210.25,3.8661017]
[1756480893748,7.04,210.37,210.24,5.08]
[1756480894652,7.04,210.37,210.18,5.08]
[1756480895050,4.2791,210.32,210.18,5.08]
[1756480895253,7.04,210.33,210.18,5.08]
[1756480895547,66.54,210.39,210.2,5.08]
[1756480895744,34.42,210.38,210.2,5.08]
[1756480896546,4.2786,210.34,210.2,5.08]
[1756480896750,7.35,210.33,210.2,5.08]
[1756480897653,66.54,210.39,210.2,5.08]
[1756480897654,34.08,210.36,210.2,5.08]
[1756480898149,54.66,210.35,210.2,5.08]
[1756480898347,4.2787,210.33,210.2,5.08]
[1756480899558,113.58,210.35,210.2,5.08]
[1756480900053,4.2797,210.28,210.15,328.4861017]
[1756480900251,7.35,210.29,210.14,3.8661017]
[1756480900553,7.35,210.29,210.14,5.08]
[1756480900856,7.35,210.29,210.17,4.2819]
[1756480901558,7.35,210.29,210.19,4.2815]
[1756480901751,7.35,210.29,210.15,3.8661017]
[1756480901951,7.35,210.29,210.18,4.2817]
[1756480902549,7.35,210.29,210.17,66.6077]
[1756480903252,7.35,210.29,210.18,5.08]
[1756480903654,7.35,210.29,210.21,4.281]
[1756480904460,7.35,210.35,210.21,66.5955]
[1756480904655,7.35,210.35,210.22,5.08]
[1756480905061,4.2785,210.34,210.24,4.2805]
[1756480905760,4.2775,210.39,210.29,4.2795]
[1756480906155,7.35,210.39,210.22,5.08]
[1756480906557,4.2781,210.36,210.25,4.2801]
[1756480906858,4.2781,210.36,210.22,5.08]
[1756480907160,132.5177,210.38,210.27,4.2799]
[1756480907365,4.2777,210.38,210.27,4.2799]
[1756480907561,135.53,210.39,210.27,4.2799]
[1756480907956,7.35,210.34,210.22,5.08]
[1756480908461,66.5523,210.35,210.16,66.6102]
[1756480908462,4.2801,210.27,210.16,5.08]
[1756480909663,66.5714,210.29,210.16,5.08]
[1756480910361,7.35,210.26,210.15,4.2822]
[1756480910560,7.35,210.26,210.13,184.32695101]
[1756480910754,135.45,210.26,210.13,188.19305271]
[1756480911454,4.2807,210.24,210.13,192.47565271]
[1756480911664,135.45,210.26,210.13,184.32695101]
[1756480911964,7.35,210.26,210.14,5.08]
[1756480912166,4.2799,210.28,210.15,3.8661017]
[1756480912461,7.35,210.31,210.19,75.5478017]
[1756480912658,66.5499,210.36,210.25,4.2801]
[1756480912659,4.2783,210.35,210.25,4.2801]
[1756480913163,4.2786,210.34,210.25,4.2801]
[1756480915163,4.2775,210.39,210.26,71.6586]
[1756480915364,128.1,210.41,210.27,66.5764]
[1756480915563,128.1,210.41,210.26,5.08]
[1756480915763,11.6279,210.37,210.28,4.2795]
[1756480915964,7.35,210.37,210.28,4.2795]
[1756480916869,4.2782,210.36,210.28,4.2795]
[1756480917364,7.35,210.37,210.29,4.2793]
[1756480917571,128.1,210.42,210.27,66.5767]
[1756480918072,4.2773,210.4,210.31,4.2789]
[1756480919567,4.2773,210.4,210.26,8.9461017]
[1756480919568,4.2777,210.38,210.26,5.08]
[1756480920368,4.2777,210.38,210.21,128.08]
[1756480920369,7.35,210.39,210.23,3.8661017]
[1756480920570,7.35,210.39,210.25,8.9461017]
[1756480920771,7.35,210.39,210.28,3.8661017]
[1756480920966,7.35,210.39,210.27,3.8661017]
[1756480921172,7.35,210.39,210.25,8.9461017]
[1756480921364,128.08,210.44,210.28,3.8661017]
[1756480921572,128.08,210.44,210.29,3.8661017]
[1756480921868,7.35,210.43,210.28,3.8661017]
[1756480922374,7.35,210.43,210.29,3.8661017]
[1756480922574,7.35,210.43,210.3,8.9461017]
[1756480923474,11.6268,210.43,210.3,8.9461017]
[1756480923871,11.6268,210.43,210.31,3.8661017]
[1756480924472,7.35,210.43,210.31,3.8661017]
[1756480924672,7.35,210.43,210.32,3.8661017]
[1756480924875,7.35,210.43,210.33,3.8661017]
[1756480925074,7.35,210.43,210.32,3.8661017]
[1756480925378,7.35,210.43,210.3,5.08]
[1756480925379,7.35,210.43,210.3,8.9461017]
[1756480925572,7.35,210.43,210.31,3.8661017]
[1756480925573,135.41,210.43,210.31,3.8661017]
[1756480925778,4.2772,210.41,210.31,3.8661017]
[1756480925976,4.2772,210.41,210.3,8.9461017]
[1756480926167,7.35,210.43,210.32,3.8661017]
[1756480926877,7.35,210.43,210.37,4.2777]
[1756480927077,7.35,210.43,210.32,3.8661017]
[1756480927282,7.35,210.43,210.3,8.9461017]
[1756480927474,7.35,210.43,210.3,5.08]
[1756480927671,7.35,210.43,210.31,66.5637]
[1756480927876,7.35,210.43,210.31,70.4298017]
[1756480928680,7.35,210.43,210.32,70.4247017]
[1756480928977,7.09,210.53,210.45,66.5194]
[1756480929186,6.148575,210.61,210.44,71.573]
[1756480929187,7.09,210.6,210.44,71.573]
[1756480929382,67.2970426,210.61,210.44,5.05]